[Event "*** Titled Tuesday Blitz"]
[Site "Chess.com"]
[Date "2020.05.19"]
[Round "3"]
[White "Gordima"]
[Black "DraG0s3L"]
[Result "1-0"]
[WhiteElo "2769"]
[BlackElo "2523"]
[TimeControl "180+1"]
[EndTime "12:28:31 PDT"]
[Termination "Gordima won by resignation"]

1. d4 {[%clk 0:03:00.9]} 1... Nf6 {[%clk 0:02:59]} 2. c4 {[%clk 0:03:00.8]} 2...
e6 {[%clk 0:02:59.3]} 3. Nc3 {[%clk 0:03:00]} 3... Bb4 {[%clk 0:02:59.1]} 4. Qc2
{[%clk 0:02:59.2]} 4... c5 {[%clk 0:02:57.9]} 5. dxc5 {[%clk 0:02:58.7]} 5...
Na6 {[%clk 0:02:58.2]} 6. a3 {[%clk 0:02:56.2]} 6... Bxc3+ {[%clk 0:02:57.1]} 7.
Qxc3 {[%clk 0:02:57.1]} 7... Nxc5 {[%clk 0:02:56.5]} 8. f3 {[%clk 0:02:57.6]}
8... d5 {[%clk 0:02:48.9]} 9. cxd5 {[%clk 0:02:58.5]} 9... Qxd5 {[%clk
0:02:48.5]} 10. e4 {[%clk 0:02:48.7]} 10... Qh5 {[%clk 0:02:38.5]} 11. Be3
{[%clk 0:02:41.6]} 11... Ncd7 {[%clk 0:02:37.6]} 12. Nh3 {[%clk 0:02:30.4]}
12... O-O {[%clk 0:02:35.6]} 13. Be2 {[%clk 0:02:17.3]} 13... b6 {[%clk
0:01:53]} 14. Nf4 {[%clk 0:02:16]} 14... Qe5 {[%clk 0:01:52.2]} 15. Qxe5 {[%clk
0:02:15.9]} 15... Nxe5 {[%clk 0:01:53.1]} 16. Rc1 {[%clk 0:02:16.3]} 16... Bb7
{[%clk 0:01:51.3]} 17. Rc7 {[%clk 0:02:13.3]} 17... Rab8 {[%clk 0:01:41.4]} 18.
Kf2 {[%clk 0:02:12.8]} 18... Ne8 {[%clk 0:01:35.9]} 19. Rc3 {[%clk 0:02:11.7]}
19... f5 {[%clk 0:01:34.9]} 20. exf5 {[%clk 0:01:35.6]} 20... Rxf5 {[%clk
0:01:34.4]} 21. h3 {[%clk 0:01:22.5]} 21... Nd6 {[%clk 0:01:03.2]} 22. Rd1
{[%clk 0:01:16.4]} 22... g5 {[%clk 0:00:32.4]} 23. Rxd6 {[%clk 0:01:15.4]} 23...
gxf4 {[%clk 0:00:32.6]} 24. Bd4 {[%clk 0:01:12.4]} 24... Bd5 {[%clk 0:00:32.8]}
25. Rc7 {[%clk 0:01:09]} 25... Nf7 {[%clk 0:00:25.9]} 26. Rdd7 {[%clk 0:01:07]}
26... Rf8 {[%clk 0:00:19.7]} 27. Bd3 {[%clk 0:01:02.7]} 27... Rg5 {[%clk
0:00:19.6]} 28. Rxa7 {[%clk 0:01:01.8]} 28... Bc6 {[%clk 0:00:19.9]} 29. Rdc7
{[%clk 0:01:01.3]} 29... e5 {[%clk 0:00:18.9]} 30. Rxc6 {[%clk 0:00:32.4]} 30...
exd4 {[%clk 0:00:19.2]} 31. Bc4 {[%clk 0:00:33]} 31... Kg7 {[%clk 0:00:06.3]}
32. Rcc7 {[%clk 0:00:31.6]} 32... Rf5 {[%clk 0:00:06.8]} 33. Ke2 {[%clk
0:00:28.8]} 33... Kg6 {[%clk 0:00:06.6]} 34. Bxf7+ {[%clk 0:00:27.2]} 34...
R8xf7 {[%clk 0:00:06.7]} 35. Rxf7 {[%clk 0:00:27.7]} 35... Rxf7 {[%clk
0:00:07.6]} 36. Rxf7 {[%clk 0:00:28.6]} 36... Kxf7 {[%clk 0:00:08.3]} 37. Kd3
{[%clk 0:00:29.5]} 37... Ke6 {[%clk 0:00:09]} 38. Kxd4 {[%clk 0:00:30.4]} 38...
Kd6 {[%clk 0:00:09.9]} 1-0

[Event "*** Titled Tuesday Blitz"]
[Site "Chess.com"]
[Date "2020.05.19"]
[Round "3"]
[White "mrkvoz"]
[Black "carvillshill"]
[Result "1/2-1/2"]
[WhiteElo "2813"]
[BlackElo "2546"]
[TimeControl "180+1"]
[EndTime "12:28:32 PDT"]
[Termination "Game drawn - insufficient material"]

1. e4 {[%clk 0:03:00.9]} 1... c5 {[%clk 0:02:59.7]} 2. Nc3 {[%clk 0:02:59.6]}
2... Nc6 {[%clk 0:02:58.1]} 3. Nf3 {[%clk 0:02:59.7]} 3... d6 {[%clk 0:02:57.2]}
4. d4 {[%clk 0:02:58.8]} 4... cxd4 {[%clk 0:02:57.3]} 5. Nxd4 {[%clk 0:02:59.7]}
5... Nf6 {[%clk 0:02:57.6]} 6. Bg5 {[%clk 0:02:59.9]} 6... e6 {[%clk 0:02:57.4]}
7. Qd3 {[%clk 0:03:00.1]} 7... a6 {[%clk 0:02:56.9]} 8. Nxc6 {[%clk 0:03:00.2]}
8... bxc6 {[%clk 0:02:56.8]} 9. O-O-O {[%clk 0:03:01.1]} 9... e5 {[%clk
0:02:49.5]} 10. f4 {[%clk 0:03:00.5]} 10... h6 {[%clk 0:02:37.2]} 11. fxe5
{[%clk 0:03:00.7]} 11... hxg5 {[%clk 0:02:36.5]} 12. exf6 {[%clk 0:03:01]} 12...
Qxf6 {[%clk 0:02:35.4]} 13. Qc4 {[%clk 0:03:00.7]} 13... Bd7 {[%clk 0:02:31.1]}
14. Be2 {[%clk 0:02:43.3]} 14... Be7 {[%clk 0:02:03.6]} 15. Rhf1 {[%clk
0:02:42.7]} 15... Qe6 {[%clk 0:01:59]} 16. h3 {[%clk 0:02:42.1]} 16... Qxc4
{[%clk 0:01:56]} 17. Bxc4 {[%clk 0:02:43]} 17... O-O {[%clk 0:01:54.8]} 18. Rd4
{[%clk 0:02:18.6]} 18... a5 {[%clk 0:01:48.4]} 19. Na4 {[%clk 0:02:17.1]} 19...
Rab8 {[%clk 0:01:46.6]} 20. b3 {[%clk 0:02:16.9]} 20... g6 {[%clk 0:01:29.8]}
21. Be2 {[%clk 0:02:10.6]} 21... c5 {[%clk 0:01:26.5]} 22. Nxc5 {[%clk
0:01:56.5]} 22... Bc6 {[%clk 0:01:16.6]} 23. Nd3 {[%clk 0:01:43.9]} 23... Kg7
{[%clk 0:01:17]} 24. Nb2 {[%clk 0:01:40.9]} 24... Rfd8 {[%clk 0:01:06]} 25. Bc4
{[%clk 0:01:39]} 25... Bf6 {[%clk 0:01:04.7]} 26. Rd2 {[%clk 0:01:33.8]} 26...
Bxe4 {[%clk 0:01:01.4]} 27. Rdf2 {[%clk 0:01:33.6]} 27... Bxb2+ {[%clk
0:01:01.1]} 28. Kxb2 {[%clk 0:01:33.7]} 28... f5 {[%clk 0:01:01.6]} 29. Rd2
{[%clk 0:01:30.4]} 29... d5 {[%clk 0:01:01.3]} 30. Bd3 {[%clk 0:01:29.1]} 30...
Kf6 {[%clk 0:00:59.1]} 31. Rfd1 {[%clk 0:01:29.3]} 31... Ke5 {[%clk 0:00:57.7]}
32. a4 {[%clk 0:01:25.4]} 32... Rbc8 {[%clk 0:00:54.5]} 33. Bb5 {[%clk 0:01:25]}
33... d4 {[%clk 0:00:53.2]} 34. Bc4 {[%clk 0:01:20.9]} 34... Rc5 {[%clk
0:00:47]} 35. c3 {[%clk 0:01:19.7]} 35... dxc3+ {[%clk 0:00:45.8]} 36. Kxc3
{[%clk 0:01:20.6]} 36... Rxd2 {[%clk 0:00:45.7]} 37. Rxd2 {[%clk 0:01:21.5]}
37... Kf4 {[%clk 0:00:45.2]} 38. b4 {[%clk 0:01:13.1]} 38... axb4+ {[%clk
0:00:44.6]} 39. Kxb4 {[%clk 0:01:14]} 39... Rc8 {[%clk 0:00:44.8]} 40. a5 {[%clk
0:01:14.4]} 40... Kg3 {[%clk 0:00:45]} 41. Bf1 {[%clk 0:01:14.6]} 41... Rc1
{[%clk 0:00:43.9]} 42. Bb5 {[%clk 0:01:08.1]} 42... Bxg2 {[%clk 0:00:42.7]} 43.
a6 {[%clk 0:01:08.3]} 43... Ra1 {[%clk 0:00:41.9]} 44. Ba4 {[%clk 0:01:08.5]}
44... Rb1+ {[%clk 0:00:38.9]} 45. Ka5 {[%clk 0:01:08.2]} 45... Rb8 {[%clk
0:00:38.1]} 46. a7 {[%clk 0:01:06.4]} 46... Rf8 {[%clk 0:00:37.4]} 47. Rb2
{[%clk 0:01:02.1]} 47... Ra8 {[%clk 0:00:34.8]} 48. Rxg2+ {[%clk 0:01:02]} 48...
Kxh3 {[%clk 0:00:31.7]} 49. Rxg5 {[%clk 0:01:02]} 49... Rxa7+ {[%clk 0:00:31.5]}
50. Kb4 {[%clk 0:01:02.7]} 50... Rg7 {[%clk 0:00:30.6]} 51. Be8 {[%clk
0:01:02.2]} 51... Kh4 {[%clk 0:00:30.5]} 52. Rg1 {[%clk 0:01:02.2]} 52... g5
{[%clk 0:00:30.7]} 53. Kc5 {[%clk 0:01:02.4]} 53... g4 {[%clk 0:00:31.2]} 54.
Kd5 {[%clk 0:01:02.3]} 54... g3 {[%clk 0:00:30.6]} 55. Ke5 {[%clk 0:01:02.4]}
55... g2 {[%clk 0:00:30.8]} 56. Kxf5 {[%clk 0:00:52.4]} 56... Kg3 {[%clk
0:00:30.3]} 57. Bc6 {[%clk 0:00:51]} 57... Kf2 {[%clk 0:00:30.2]} 58. Rxg2+
{[%clk 0:00:51.3]} 58... Rxg2 {[%clk 0:00:30.2]} 59. Bxg2 {[%clk 0:00:52]}
1/2-1/2

[Event "*** Titled Tuesday Blitz"]
[Site "Chess.com"]
[Date "2020.05.19"]
[Round "3"]
[White "Konek-Gorbunok"]
[Black "IriBu"]
[Result "0-1"]
[WhiteElo "2286"]
[BlackElo "2519"]
[TimeControl "180+1"]
[EndTime "12:28:33 PDT"]
[Termination "IriBu won on time"]

1. d4 {[%clk 0:03:00.9]} 1... Nf6 {[%clk 0:02:59.1]} 2. Nf3 {[%clk 0:03:00.9]}
2... e6 {[%clk 0:02:58.4]} 3. g3 {[%clk 0:03:00.8]} 3... c5 {[%clk 0:02:58.4]}
4. Bg2 {[%clk 0:03:00.5]} 4... cxd4 {[%clk 0:02:59.3]} 5. O-O {[%clk 0:03:00.5]}
5... d5 {[%clk 0:02:58.6]} 6. Nxd4 {[%clk 0:03:00.7]} 6... e5 {[%clk 0:02:58.8]}
7. Nf3 {[%clk 0:03:00.9]} 7... Nc6 {[%clk 0:02:58.3]} 8. c4 {[%clk 0:03:01.1]}
8... Be6 {[%clk 0:02:57]} 9. Ng5 {[%clk 0:02:51.6]} 9... dxc4 {[%clk 0:02:53.1]}
10. Nxe6 {[%clk 0:02:49.4]} 10... Qxd1 {[%clk 0:02:41.2]} 11. Nxg7+ {[%clk
0:02:30.4]} 11... Bxg7 {[%clk 0:02:42.1]} 12. Rxd1 {[%clk 0:02:30.4]} 12... Nd4
{[%clk 0:02:40.7]} 13. Nc3 {[%clk 0:02:22.5]} 13... Rb8 {[%clk 0:02:34.6]} 14.
Bg5 {[%clk 0:01:48.7]} 14... O-O {[%clk 0:02:27.9]} 15. e3 {[%clk 0:01:38.4]}
15... Ne6 {[%clk 0:02:26]} 16. Bxf6 {[%clk 0:01:32.5]} 16... Bxf6 {[%clk
0:02:26.9]} 17. Nd5 {[%clk 0:01:24.1]} 17... Bg7 {[%clk 0:02:25.9]} 18. Rac1
{[%clk 0:01:14.4]} 18... b5 {[%clk 0:02:25.2]} 19. Ne7+ {[%clk 0:01:11.6]} 19...
Kh8 {[%clk 0:02:24.6]} 20. Rd7 {[%clk 0:00:52.3]} 20... a6 {[%clk 0:02:18.9]}
21. Nf5 {[%clk 0:00:37.9]} 21... Nc5 {[%clk 0:02:14.3]} 22. Ra7 {[%clk
0:00:29.3]} 22... Nd3 {[%clk 0:02:08]} 23. Rc2 {[%clk 0:00:28]} 23... Rb6 {[%clk
0:02:08.2]} 24. Be4 {[%clk 0:00:17.6]} 24... Nc5 {[%clk 0:02:06.7]} 25. Bd5
{[%clk 0:00:17.6]} 25... Kg8 {[%clk 0:01:49.7]} 26. e4 {[%clk 0:00:16.8]} 26...
Ne6 {[%clk 0:01:30.1]} 27. Bxe6 {[%clk 0:00:13]} 27... Rxe6 {[%clk 0:01:31]} 28.
Rd2 {[%clk 0:00:10.3]} 28... b4 {[%clk 0:01:27.4]} 29. Rdd7 {[%clk 0:00:09.7]}
29... Rc6 {[%clk 0:01:23.9]} 30. Rdc7 {[%clk 0:00:09.2]} 30... Rxc7 {[%clk
0:01:16.9]} 31. Rxc7 {[%clk 0:00:10.1]} 31... c3 {[%clk 0:01:15.8]} 32. bxc3
{[%clk 0:00:09.9]} 32... bxc3 {[%clk 0:01:16.7]} 33. Rxc3 {[%clk 0:00:10.3]}
33... Rb8 {[%clk 0:01:17.3]} 34. Rc6 {[%clk 0:00:09.5]} 34... a5 {[%clk
0:01:16.6]} 35. Ra6 {[%clk 0:00:08.9]} 35... Rb5 {[%clk 0:01:13.6]} 36. Ra7
{[%clk 0:00:08.9]} 36... Bf8 {[%clk 0:01:12.8]} 37. Ne7+ {[%clk 0:00:06.1]}
37... Kg7 {[%clk 0:01:12.2]} 38. Nf5+ {[%clk 0:00:05.2]} 38... Kg6 {[%clk
0:01:09.1]} 39. a4 {[%clk 0:00:05.3]} 39... Rb1+ {[%clk 0:01:06.4]} 40. Kg2
{[%clk 0:00:04.6]} 40... Bb4 {[%clk 0:01:07.3]} 41. Ne7+ {[%clk 0:00:03.6]}
41... Kg7 {[%clk 0:01:06]} 42. Nd5 {[%clk 0:00:04.5]} 42... Bd2 {[%clk
0:00:52.9]} 0-1

[Event "*** Titled Tuesday Blitz"]
[Site "Chess.com"]
[Date "2020.05.19"]
[Round "3"]
[White "DaggiGretarsson"]
[Black "Mykola-Bortnyk"]
[Result "0-1"]
[WhiteElo "2611"]
[BlackElo "2886"]
[TimeControl "180+1"]
[EndTime "12:28:34 PDT"]
[Termination "Mykola-Bortnyk won by resignation"]

1. d4 {[%clk 0:03:00.9]} 1... d5 {[%clk 0:02:59.3]} 2. Nf3 {[%clk 0:03:00.3]}
2... Nf6 {[%clk 0:02:58.9]} 3. g3 {[%clk 0:03:00.4]} 3... Bf5 {[%clk 0:02:56.2]}
4. Bg2 {[%clk 0:02:59.8]} 4... e6 {[%clk 0:02:56.6]} 5. O-O {[%clk 0:02:59.5]}
5... c5 {[%clk 0:02:54.4]} 6. c4 {[%clk 0:02:58.1]} 6... Nc6 {[%clk 0:02:52.9]}
7. Nc3 {[%clk 0:02:56.4]} 7... dxc4 {[%clk 0:02:50.6]} 8. Qa4 {[%clk 0:02:55.7]}
8... Nd7 {[%clk 0:02:23.3]} 9. Qxc4 {[%clk 0:02:25.1]} 9... Nb6 {[%clk
0:02:21.5]} 10. Qb3 {[%clk 0:02:08.6]} 10... cxd4 {[%clk 0:02:15.3]} 11. Rd1
{[%clk 0:02:07.7]} 11... Bc5 {[%clk 0:02:06.3]} 12. Qb5 {[%clk 0:01:48.7]} 12...
Qe7 {[%clk 0:01:54.4]} 13. Ne5 {[%clk 0:01:34.6]} 13... O-O {[%clk 0:01:52.7]}
14. Bxc6 {[%clk 0:01:29.6]} 14... dxc3 {[%clk 0:01:44.2]} 15. Bg2 {[%clk
0:01:26]} 15... Rfd8 {[%clk 0:01:28.8]} 16. Rf1 {[%clk 0:01:04.9]} 16... Bd4
{[%clk 0:01:09.7]} 17. Nf3 {[%clk 0:01:03.3]} 17... Bf6 {[%clk 0:01:00.8]} 18.
a4 {[%clk 0:00:57.6]} 18... c2 {[%clk 0:00:49.1]} 19. a5 {[%clk 0:00:52.7]}
19... Nd5 {[%clk 0:00:49.5]} 20. Ne1 {[%clk 0:00:49]} 20... Bg6 {[%clk
0:00:39.4]} 21. e4 {[%clk 0:00:46.2]} 21... a6 {[%clk 0:00:39.7]} 22. Qe2 {[%clk
0:00:42.9]} 22... Nb4 {[%clk 0:00:35.7]} 23. Nxc2 {[%clk 0:00:39.9]} 23... Nxc2
{[%clk 0:00:30.5]} 24. Qxc2 {[%clk 0:00:39.7]} 24... Rac8 {[%clk 0:00:31.4]} 25.
Qb3 {[%clk 0:00:39.5]} 25... Bd4 {[%clk 0:00:31.1]} 26. Be3 {[%clk 0:00:37.4]}
26... e5 {[%clk 0:00:31.7]} 27. Rfc1 {[%clk 0:00:35.6]} 27... h5 {[%clk
0:00:31]} 28. h4 {[%clk 0:00:29.9]} 28... Kh7 {[%clk 0:00:31.2]} 29. Bxd4 {[%clk
0:00:20.9]} 29... exd4 {[%clk 0:00:30.4]} 30. Qd3 {[%clk 0:00:19.6]} 30... f6
{[%clk 0:00:30.1]} 31. Re1 {[%clk 0:00:11.7]} 31... Qb4 {[%clk 0:00:27.6]} 32.
Bh3 {[%clk 0:00:10.7]} 32... Rc5 {[%clk 0:00:24.6]} 33. Bf5 {[%clk 0:00:10]}
33... Bxf5 {[%clk 0:00:23.7]} 34. exf5 {[%clk 0:00:10]} 34... Qb5 {[%clk
0:00:22]} 35. Re7 {[%clk 0:00:07.5]} 35... Qxd3 {[%clk 0:00:21.8]} 0-1

[Event "*** Titled Tuesday Blitz"]
[Site "Chess.com"]
[Date "2020.05.19"]
[Round "3"]
[White "Ural_bogatyr"]
[Black "Jagerrmeisterr"]
[Result "0-1"]
[WhiteElo "2402"]
[BlackElo "2655"]
[TimeControl "180+1"]
[EndTime "12:28:34 PDT"]
[Termination "Jagerrmeisterr won by resignation"]

1. e4 {[%clk 0:03:00.9]} 1... c6 {[%clk 0:02:58.8]} 2. d4 {[%clk 0:03:00.4]}
2... d5 {[%clk 0:02:59.7]} 3. e5 {[%clk 0:03:01.1]} 3... Bf5 {[%clk 0:02:59.6]}
4. Nc3 {[%clk 0:03:00.8]} 4... e6 {[%clk 0:03:00]} 5. g4 {[%clk 0:03:01]} 5...
Bg6 {[%clk 0:03:00.6]} 6. Nge2 {[%clk 0:03:01.4]} 6... f6 {[%clk 0:02:43.3]} 7.
h4 {[%clk 0:02:56.3]} 7... Bb4 {[%clk 0:02:38.4]} 8. a3 {[%clk 0:02:37.3]} 8...
Ba5 {[%clk 0:02:23.6]} 9. h5 {[%clk 0:02:08.1]} 9... Bf7 {[%clk 0:02:21.5]} 10.
f4 {[%clk 0:02:04.4]} 10... Bc7 {[%clk 0:02:10.5]} 11. g5 {[%clk 0:01:51.3]}
11... fxg5 {[%clk 0:02:05.5]} 12. fxg5 {[%clk 0:01:50.4]} 12... Ne7 {[%clk
0:02:05.9]} 13. Nf4 {[%clk 0:01:39.9]} 13... c5 {[%clk 0:01:54.5]} 14. Nb5
{[%clk 0:01:24.5]} 14... cxd4 {[%clk 0:01:43.8]} 15. Nxc7+ {[%clk 0:01:23.9]}
15... Qxc7 {[%clk 0:01:44]} 16. Qxd4 {[%clk 0:01:03.7]} 16... Nbc6 {[%clk
0:01:42.6]} 17. Bb5 {[%clk 0:01:04]} 17... O-O-O {[%clk 0:01:41]} 18. Qa4 {[%clk
0:00:55.5]} 18... a6 {[%clk 0:01:34.5]} 19. Bxc6 {[%clk 0:00:53.9]} 19... Nxc6
{[%clk 0:01:34.7]} 20. Nd3 {[%clk 0:00:52.5]} 20... Rhf8 {[%clk 0:01:01]} 21.
Bf4 {[%clk 0:00:47.8]} 21... Be8 {[%clk 0:01:01.4]} 22. Qb3 {[%clk 0:00:38.8]}
22... Nd4 {[%clk 0:00:58.9]} 23. Qc3 {[%clk 0:00:30.9]} 23... Qxc3+ {[%clk
0:00:50.8]} 24. bxc3 {[%clk 0:00:31.8]} 24... Nxc2+ {[%clk 0:00:51.6]} 25. Kd2
{[%clk 0:00:32.2]} 25... Nxa1 {[%clk 0:00:52.5]} 26. Rxa1 {[%clk 0:00:32.3]}
26... Bb5 {[%clk 0:00:53.4]} 27. Be3 {[%clk 0:00:29.5]} 27... Bxd3 {[%clk
0:00:48.9]} 28. Kxd3 {[%clk 0:00:30.4]} 28... Rf3 {[%clk 0:00:46.7]} 29. Kd4
{[%clk 0:00:29.9]} 29... Rd7 {[%clk 0:00:44.8]} 30. Rb1 {[%clk 0:00:20.1]} 30...
Rc7 {[%clk 0:00:44.9]} 31. Rb4 {[%clk 0:00:20.4]} 31... b5 {[%clk 0:00:40]} 32.
a4 {[%clk 0:00:19.1]} 32... Rc4+ {[%clk 0:00:36.6]} 33. Rxc4+ {[%clk 0:00:18.7]}
33... bxc4 {[%clk 0:00:30.3]} 34. a5 {[%clk 0:00:07.7]} 34... Kc7 {[%clk
0:00:29.6]} 35. h6 {[%clk 0:00:04.9]} 35... gxh6 {[%clk 0:00:28.3]} 36. gxh6
{[%clk 0:00:05.8]} 36... Kc6 {[%clk 0:00:28.6]} 0-1

[Event "*** Titled Tuesday Blitz"]
[Site "Chess.com"]
[Date "2020.05.19"]
[Round "3"]
[White "VladimirBugayev"]
[Black "EmeseBalogh"]
[Result "1-0"]
[WhiteElo "2281"]
[BlackElo "1934"]
[TimeControl "180+1"]
[EndTime "12:28:35 PDT"]
[Termination "VladimirBugayev won by resignation"]

1. e4 {[%clk 0:03:00.9]} 1... d5 {[%clk 0:02:58.9]} 2. exd5 {[%clk 0:03:00.2]}
2... Qxd5 {[%clk 0:02:59.8]} 3. Nc3 {[%clk 0:02:59.1]} 3... Qd6 {[%clk
0:02:59.9]} 4. d4 {[%clk 0:02:50.7]} 4... c6 {[%clk 0:02:59.8]} 5. g3 {[%clk
0:02:49.8]} 5... Nf6 {[%clk 0:02:59.9]} 6. Bf4 {[%clk 0:02:49.3]} 6... Qd8
{[%clk 0:02:59.1]} 7. Bg2 {[%clk 0:02:48.9]} 7... Bf5 {[%clk 0:02:58.5]} 8. Nge2
{[%clk 0:02:48.7]} 8... e6 {[%clk 0:02:58.4]} 9. O-O {[%clk 0:02:47.6]} 9... Bd6
{[%clk 0:02:57.5]} 10. Qd2 {[%clk 0:02:41.5]} 10... O-O {[%clk 0:02:55.9]} 11.
Rad1 {[%clk 0:02:21.8]} 11... Qc7 {[%clk 0:02:54.1]} 12. Bxd6 {[%clk 0:02:04.3]}
12... Qxd6 {[%clk 0:02:53.2]} 13. Na4 {[%clk 0:02:04.2]} 13... Nbd7 {[%clk
0:02:50.7]} 14. b3 {[%clk 0:01:57.9]} 14... Rfe8 {[%clk 0:02:47.3]} 15. Nb2
{[%clk 0:01:57.2]} 15... Rad8 {[%clk 0:02:44]} 16. f4 {[%clk 0:01:48.4]} 16...
Ne4 {[%clk 0:02:32.1]} 17. Qe3 {[%clk 0:01:46.2]} 17... Ndf6 {[%clk 0:02:21.6]}
18. h3 {[%clk 0:01:25.4]} 18... h5 {[%clk 0:02:09.6]} 19. Nc4 {[%clk 0:01:16.1]}
19... Qc7 {[%clk 0:02:07.4]} 20. Ne5 {[%clk 0:01:15.9]} 20... Nd5 {[%clk
0:01:49.4]} 21. Qf3 {[%clk 0:01:14.7]} 21... f6 {[%clk 0:01:48.5]} 22. Nc4
{[%clk 0:01:03.3]} 22... Bg6 {[%clk 0:01:27.4]} 23. a3 {[%clk 0:00:48.6]} 23...
b5 {[%clk 0:01:06.7]} 24. Ne3 {[%clk 0:00:46.9]} 24... Ndc3 {[%clk 0:00:18.8]}
25. Nxc3 {[%clk 0:00:43.4]} 25... Nxc3 {[%clk 0:00:19.7]} 26. Rd2 {[%clk
0:00:43.8]} 26... Ne4 {[%clk 0:00:19.7]} 27. Rdd1 {[%clk 0:00:41.1]} 27... Nc3
{[%clk 0:00:19.3]} 28. Rd2 {[%clk 0:00:41.2]} 28... Ne4 {[%clk 0:00:19.4]} 29.
Re2 {[%clk 0:00:36.3]} 29... Nxg3 {[%clk 0:00:19.5]} 30. Qxg3 {[%clk 0:00:32.8]}
30... Bf7 {[%clk 0:00:17.6]} 31. c3 {[%clk 0:00:31.1]} 31... a5 {[%clk
0:00:15.5]} 32. b4 {[%clk 0:00:30.7]} 32... axb4 {[%clk 0:00:15.3]} 33. axb4
{[%clk 0:00:30.2]} 33... Ra8 {[%clk 0:00:14.9]} 34. Rfe1 {[%clk 0:00:30]} 34...
Ra3 {[%clk 0:00:14.7]} 35. Nf1 {[%clk 0:00:26.2]} 35... Qd6 {[%clk 0:00:13.6]}
36. f5 {[%clk 0:00:24.1]} 36... Qxg3 {[%clk 0:00:09.4]} 37. Nxg3 {[%clk
0:00:24.2]} 37... exf5 {[%clk 0:00:10]} 38. Rxe8+ {[%clk 0:00:23.4]} 1-0

[Event "*** Titled Tuesday Blitz"]
[Site "Chess.com"]
[Date "2020.05.19"]
[Round "3"]
[White "ZarinaShafigullina"]
[Black "Nayemhaque22"]
[Result "0-1"]
[WhiteElo "2328"]
[BlackElo "2168"]
[TimeControl "180+1"]
[EndTime "12:28:36 PDT"]
[Termination "Nayemhaque22 won by resignation"]

1. d4 {[%clk 0:03:00.9]} 1... Nf6 {[%clk 0:02:58.7]} 2. Nf3 {[%clk 0:03:01.8]}
2... e6 {[%clk 0:02:53.2]} 3. g3 {[%clk 0:03:02.1]} 3... d5 {[%clk 0:02:51]} 4.
Bg2 {[%clk 0:03:02.6]} 4... Nbd7 {[%clk 0:02:49.5]} 5. O-O {[%clk 0:03:03.2]}
5... Be7 {[%clk 0:02:48.2]} 6. c4 {[%clk 0:03:03.2]} 6... dxc4 {[%clk
0:02:46.1]} 7. Qa4 {[%clk 0:03:02.8]} 7... O-O {[%clk 0:02:39]} 8. Qxc4 {[%clk
0:03:02]} 8... a6 {[%clk 0:02:35.1]} 9. Qc2 {[%clk 0:03:01]} 9... Rb8 {[%clk
0:02:34.1]} 10. a4 {[%clk 0:02:53.9]} 10... b5 {[%clk 0:02:31.7]} 11. axb5
{[%clk 0:02:53.8]} 11... axb5 {[%clk 0:02:31.4]} 12. Ra7 {[%clk 0:02:54.1]}
12... Bb7 {[%clk 0:02:30.3]} 13. Nc3 {[%clk 0:02:53.2]} 13... b4 {[%clk
0:02:15.6]} 14. Na4 {[%clk 0:02:46.9]} 14... Qc8 {[%clk 0:02:03.2]} 15. Nc5
{[%clk 0:02:39.1]} 15... Nxc5 {[%clk 0:01:54.1]} 16. dxc5 {[%clk 0:02:38.9]}
16... Bd5 {[%clk 0:01:52.6]} 17. Bf4 {[%clk 0:02:33.8]} 17... Rb7 {[%clk
0:01:50.4]} 18. Rfa1 {[%clk 0:02:31.9]} 18... Qb8 {[%clk 0:01:47.6]} 19. Ra8
{[%clk 0:01:38.6]} 19... Qxa8 {[%clk 0:01:45.4]} 20. Rxa8 {[%clk 0:01:39.2]}
20... Rxa8 {[%clk 0:01:45.9]} 21. h3 {[%clk 0:01:37.5]} 21... b3 {[%clk
0:01:43.5]} 22. Qc3 {[%clk 0:01:19]} 22... Ne4 {[%clk 0:01:41.4]} 23. Qd3 {[%clk
0:01:13]} 23... Bxc5 {[%clk 0:01:30.7]} 24. Be3 {[%clk 0:01:12.4]} 24... Bxe3
{[%clk 0:01:27.4]} 25. Qxe3 {[%clk 0:01:11.1]} 25... Ra2 {[%clk 0:01:21.2]} 26.
Qd4 {[%clk 0:01:09.7]} 26... c5 {[%clk 0:01:16.5]} 27. Qe5 {[%clk 0:01:03.2]}
27... f6 {[%clk 0:01:16.1]} 28. Qh5 {[%clk 0:01:02.8]} 28... g6 {[%clk
0:01:10.2]} 29. Qh4 {[%clk 0:00:54.8]} 29... Rxb2 {[%clk 0:01:07.5]} 30. Nd4
{[%clk 0:00:53.3]} 30... cxd4 {[%clk 0:01:03.1]} 31. Bxe4 {[%clk 0:00:52.8]}
31... Rc2 {[%clk 0:00:55.4]} 32. Bxd5 {[%clk 0:00:47.6]} 32... exd5 {[%clk
0:00:53.8]} 33. Qxf6 {[%clk 0:00:46.9]} 33... Rcc7 {[%clk 0:00:42.7]} 34. Qe6+
{[%clk 0:00:41.6]} 34... Rf7 {[%clk 0:00:40.7]} 35. Qe8+ {[%clk 0:00:41]} 35...
Kg7 {[%clk 0:00:37.3]} 36. Qe5+ {[%clk 0:00:40.3]} 36... Kh6 {[%clk 0:00:36]}
37. h4 {[%clk 0:00:33.7]} 37... b2 {[%clk 0:00:35.8]} 38. Qg5+ {[%clk
0:00:33.3]} 38... Kg7 {[%clk 0:00:35.7]} 39. Qe5+ {[%clk 0:00:33.4]} 39... Rf6
{[%clk 0:00:34]} 40. g4 {[%clk 0:00:26.5]} 40... b1=Q+ {[%clk 0:00:31.3]} 41.
Kh2 {[%clk 0:00:26.5]} 41... Qe4 {[%clk 0:00:31.3]} 0-1